[Event "Titled Tuesday Blitz December 06 Late 2022"]
[White "Fernandez Siles, Luis"]
[Black "Castellanos Gomez, Alejandro"]
[WhiteFideId "2209420"]
[BlackFideId "22284141"]
[WhiteElo "2186"]
[BlackElo "2168"]
[Result "0-1"]
[Round "06"]
[TimeControl "180+1"]
[Date "2022.12.07"]
[WhiteClock "0:01:01"]
[BlackClock "0:01:34"]

1. d4 {[%clk 0:03:00]}  d5 {[%clk 0:02:39]} 2. c4 {[%clk 0:03:00]}  e6 {[%clk 0:02:39]} 3. Nc3 {[%clk 0:02:59]}  Nf6 {[%clk 0:02:38]} 4. cxd5 {[%clk 0:02:58]}  exd5 {[%clk 0:02:37]} 5. Bg5 {[%clk 0:02:58]}  Be7 {[%clk 0:02:37]} 6. e3 {[%clk 0:02:58]}  c6 {[%clk 0:02:38]} 7. Qc2 {[%clk 0:02:57]}  O-O {[%clk 0:02:38]} 8. Bd3 {[%clk 0:02:57]}  Nbd7 {[%clk 0:02:39]} 9. Nf3 {[%clk 0:02:56]}  Re8 {[%clk 0:02:39]} 10. O-O {[%clk 0:02:55]}  Nf8 {[%clk 0:02:39]} 11. h3 {[%clk 0:02:54]}  g6 {[%clk 0:02:40]} 12. Rab1 {[%clk 0:02:49]}  Ne6 {[%clk 0:02:40]} 13. Bh4 {[%clk 0:02:47]}  a5 {[%clk 0:02:40]} 14. a3 {[%clk 0:02:47]}  Ng7 {[%clk 0:02:39]} 15. b4 {[%clk 0:02:46]}  axb4 {[%clk 0:02:38]} 16. axb4 {[%clk 0:02:47]}  Bf5 {[%clk 0:02:35]} 17. Bxf5 {[%clk 0:02:44]}  Nxf5 {[%clk 0:02:35]} 18. Bxf6 {[%clk 0:02:44]}  Bxf6 {[%clk 0:02:35]} 19. b5 {[%clk 0:02:44]}  Nd6 {[%clk 0:02:18]} 20. bxc6 {[%clk 0:02:38]}  bxc6 {[%clk 0:02:19]} 21. Rfc1 {[%clk 0:02:22]}  Nc4 {[%clk 0:02:19]} 22. Nd2 {[%clk 0:02:22]}  Na3 {[%clk 0:02:19]} 23. Qb3 {[%clk 0:02:14]}  Nxb1 {[%clk 0:02:19]} 24. Ndxb1 {[%clk 0:02:12]}  Rb8 {[%clk 0:02:16]} 25. Qa4 {[%clk 0:02:11]}  Qb6 {[%clk 0:02:11]} 26. Kh2 {[%clk 0:01:48]}  Be7 {[%clk 0:02:07]} 27. g3 {[%clk 0:01:42]}  Bd6 {[%clk 0:02:07]} 28. h4 {[%clk 0:01:42]}  Ra8 {[%clk 0:02:07]} 29. Qc2 {[%clk 0:01:41]}  Reb8 {[%clk 0:01:59]} 30. h5 {[%clk 0:01:36]}  Qb2 {[%clk 0:01:55]} 31. Qxb2 {[%clk 0:01:21]}  Rxb2 {[%clk 0:01:55]} 32. Kg2 {[%clk 0:01:22]}  Ra1 {[%clk 0:01:44]} 33. h6 {[%clk 0:01:17]}  Bb4 {[%clk 0:01:37]} 34. Kf3 {[%clk 0:01:01]}  Bxc3 {[%clk 0:01:34]} 0-1


[Site "https://www.chess.com"]

[Event "Titled Tuesday Blitz December 06 Late 2022"]
[White "Figorito, Nick"]
[Black "Danielyan, Vahe"]
[WhiteFideId "30923689"]
[BlackFideId "13304828"]
[WhiteElo "2406"]
[BlackElo "2423"]
[Result "0-1"]
[Round "06"]
[TimeControl "180+1"]
[Date "2022.12.07"]
[WhiteClock "0:00:14"]
[BlackClock "0:02:12"]

1. Nf3 {[%clk 0:03:00]}  d5 {[%clk 0:02:59]} 2. g3 {[%clk 0:03:01]}  Nc6 {[%clk 0:02:58]} 3. d4 {[%clk 0:03:01]}  Bg4 {[%clk 0:02:55]} 4. Bg2 {[%clk 0:03:01]}  Qd7 {[%clk 0:02:55]} 5. Ne5 {[%clk 0:03:01]}  Nxe5 {[%clk 0:02:55]} 6. dxe5 {[%clk 0:03:02]}  O-O-O {[%clk 0:02:55]} 7. Qd4 {[%clk 0:03:02]}  Kb8 {[%clk 0:02:51]} 8. Be3 {[%clk 0:03:00]}  b6 {[%clk 0:02:49]} 9. Nc3 {[%clk 0:02:53]}  Be6 {[%clk 0:02:44]} 10. b4 {[%clk 0:02:51]}  f6 {[%clk 0:02:32]} 11. b5 {[%clk 0:02:32]}  fxe5 {[%clk 0:02:32]} 12. Qxe5 {[%clk 0:02:25]}  Nf6 {[%clk 0:02:32]} 13. Qd4 {[%clk 0:02:10]}  Bh3 {[%clk 0:02:31]} 14. O-O {[%clk 0:01:57]}  e5 {[%clk 0:02:30]} 15. Qxe5 {[%clk 0:01:48]}  Bd6 {[%clk 0:02:29]} 16. Qd4 {[%clk 0:01:39]}  h5 {[%clk 0:02:28]} 17. Nxd5 {[%clk 0:01:30]}  Bxg2 {[%clk 0:02:27]} 18. Nxf6 {[%clk 0:01:24]}  Qh3 {[%clk 0:02:26]} 19. Rfd1 {[%clk 0:00:40]}  gxf6 {[%clk 0:02:22]} 20. Bf4 {[%clk 0:00:35]}  Bb7 {[%clk 0:02:18]} 21. e4 {[%clk 0:00:15]}  h4 {[%clk 0:02:13]} 22. Bxd6 {[%clk 0:00:14]}  Rxd6 {[%clk 0:02:13]} 23. Qe3 {[%clk 0:00:09]}  hxg3 {[%clk 0:02:13]} 24. Qxg3 {[%clk 0:00:07]}  Qxg3+ {[%clk 0:02:12]} 25. fxg3 {[%clk 0:00:07]}  Bxe4 {[%clk 0:02:13]} 26. Rxd6 {[%clk 0:00:07]}  cxd6 {[%clk 0:02:14]} 27. h4 {[%clk 0:00:07]}  d5 {[%clk 0:02:15]} 28. Kf2 {[%clk 0:00:07]}  Rc8 {[%clk 0:02:13]} 29. Ke3 {[%clk 0:00:06]}  Rxc2 {[%clk 0:02:14]} 30. Kd4 {[%clk 0:00:06]}  Rd2+ {[%clk 0:02:13]} 31. Kc3 {[%clk 0:00:06]}  Rg2 {[%clk 0:02:14]} 32. a4 {[%clk 0:00:05]}  Rxg3+ {[%clk 0:02:14]} 33. Kb4 {[%clk 0:00:06]}  d4 {[%clk 0:02:14]} 34. Kc4 {[%clk 0:00:05]}  d3 {[%clk 0:02:14]} 35. Kd4 {[%clk 0:00:06]}  f5 {[%clk 0:02:13]} 36. h5 {[%clk 0:00:05]}  d2 {[%clk 0:02:13]} 37. Rd1 {[%clk 0:00:05]}  Rd3+ {[%clk 0:02:13]} 38. Ke5 {[%clk 0:00:05]}  Bf3 {[%clk 0:02:13]} 39. Rf1 {[%clk 0:00:04]}  d1=N {[%clk 0:02:12]} 40. Rxd1 {[%clk 0:00:04]}  Rxd1 {[%clk 0:02:12]} 41. Kf4 {[%clk 0:00:04]}  Be4 {[%clk 0:02:12]} 42. h6 {[%clk 0:00:04]}  Rh1 {[%clk 0:02:12]} 43. Kg5 {[%clk 0:00:05]}  Rxh6 {[%clk 0:02:07]} 44. Kxh6 {[%clk 0:00:05]}  f4 {[%clk 0:02:08]} 45. Kg5 {[%clk 0:00:06]}  f3 {[%clk 0:02:09]} 46. Kf4 {[%clk 0:00:06]}  f2 {[%clk 0:02:09]} 47. Kxe4 {[%clk 0:00:07]}  f1=Q {[%clk 0:02:10]} 48. Kd4 {[%clk 0:00:08]}  Qa1+ {[%clk 0:02:09]} 49. Kc4 {[%clk 0:00:08]}  Qxa4+ {[%clk 0:02:09]} 50. Kc3 {[%clk 0:00:09]}  Qxb5 {[%clk 0:02:10]} 51. Kd4 {[%clk 0:00:09]}  a5 {[%clk 0:02:11]} 52. Kc3 {[%clk 0:00:10]}  a4 {[%clk 0:02:11]} 53. Kd4 {[%clk 0:00:10]}  a3 {[%clk 0:02:12]} 54. Kc3 {[%clk 0:00:11]}  a2 {[%clk 0:02:13]} 55. Kd2 {[%clk 0:00:12]}  a1=Q {[%clk 0:02:12]} 56. Kc2 {[%clk 0:00:13]}  Qaa4+ {[%clk 0:02:12]} 57. Kc3 {[%clk 0:00:13]}  Qbb3+ {[%clk 0:02:12]} 58. Kd2 {[%clk 0:00:13]}  Qaa2+ {[%clk 0:02:12]} 59. Kc1 {[%clk 0:00:14]}  Qbc2# {[%clk 0:02:12]} 0-1


[Site "https://www.chess.com"]

[Event "Titled Tuesday Blitz December 06 Late 2022"]
[White "Gasparyan, David"]
[Black "Espinosa, Pedro"]
[WhiteFideId "13311980"]
[BlackFideId "30921066"]
[WhiteElo "2384"]
[BlackElo "2016"]
[Result "1-0"]
[Round "06"]
[TimeControl "180+1"]
[Date "2022.12.07"]
[WhiteClock "0:00:13"]
[BlackClock "0:00:07"]

1. e4 {[%clk 0:03:00]}  c5 {[%clk 0:03:00]} 2. Ne2 {[%clk 0:03:00]}  Nc6 {[%clk 0:02:58]} 3. Nbc3 {[%clk 0:03:01]}  d6 {[%clk 0:02:57]} 4. d3 {[%clk 0:02:58]}  g6 {[%clk 0:02:50]} 5. h4 {[%clk 0:02:57]}  Nf6 {[%clk 0:02:50]} 6. Bg5 {[%clk 0:02:57]}  Bg7 {[%clk 0:02:50]} 7. Ng3 {[%clk 0:02:56]}  Qb6 {[%clk 0:02:48]} 8. Rb1 {[%clk 0:02:47]}  Be6 {[%clk 0:02:47]} 9. Be2 {[%clk 0:02:41]}  O-O-O {[%clk 0:02:46]} 10. Be3 {[%clk 0:02:40]}  Nd4 {[%clk 0:02:45]} 11. b4 {[%clk 0:02:30]}  Kb8 {[%clk 0:02:33]} 12. bxc5 {[%clk 0:02:21]}  Qxc5 {[%clk 0:02:31]} 13. Qd2 {[%clk 0:02:13]}  Rc8 {[%clk 0:02:24]} 14. Bxd4 {[%clk 0:02:08]}  Qxd4 {[%clk 0:02:25]} 15. Nb5 {[%clk 0:02:08]}  Qc5 {[%clk 0:02:22]} 16. c4 {[%clk 0:02:03]}  a6 {[%clk 0:01:55]} 17. Nc3 {[%clk 0:01:47]}  Ng4 {[%clk 0:01:44]} 18. O-O {[%clk 0:01:29]}  Bd4 {[%clk 0:01:29]} 19. Nh1 {[%clk 0:01:29]}  g5 {[%clk 0:01:11]} 20. h5 {[%clk 0:01:00]}  Qe5 {[%clk 0:00:59]} 21. Bxg4 {[%clk 0:00:52]}  Bxc3 {[%clk 0:00:58]} 22. Qe2 {[%clk 0:00:43]}  Bxg4 {[%clk 0:00:54]} 23. Qxg4 {[%clk 0:00:43]}  Qf4 {[%clk 0:00:54]} 24. Qd7 {[%clk 0:00:33]}  Rc7 {[%clk 0:00:20]} 25. Qa4 {[%clk 0:00:33]}  Be5 {[%clk 0:00:10]} 26. Ng3 {[%clk 0:00:29]}  Ka7 {[%clk 0:00:07]} 27. Rb3 {[%clk 0:00:19]}  Rhc8 {[%clk 0:00:06]} 28. Rfb1 {[%clk 0:00:19]}  Qd2 {[%clk 0:00:04]} 29. Qb4 {[%clk 0:00:14]}  Qxb4 {[%clk 0:00:04]} 30. Rxb4 {[%clk 0:00:15]}  Bxg3 {[%clk 0:00:04]} 31. fxg3 {[%clk 0:00:15]}  Rb8 {[%clk 0:00:04]} 32. Kf2 {[%clk 0:00:16]}  b6 {[%clk 0:00:04]} 33. a4 {[%clk 0:00:16]}  a5 {[%clk 0:00:04]} 34. Rb5 {[%clk 0:00:16]}  Rc5 {[%clk 0:00:05]} 35. R5b3 {[%clk 0:00:16]}  Rc6 {[%clk 0:00:05]} 36. Ke3 {[%clk 0:00:16]}  h6 {[%clk 0:00:05]} 37. g4 {[%clk 0:00:16]}  Rb7 {[%clk 0:00:05]} 38. Rf1 {[%clk 0:00:16]}  f6 {[%clk 0:00:05]} 39. Rf5 {[%clk 0:00:16]}  Rc8 {[%clk 0:00:05]} 40. Kd2 {[%clk 0:00:15]}  Rbc7 {[%clk 0:00:05]} 41. Ke3 {[%clk 0:00:12]}  Rc5 {[%clk 0:00:06]} 42. Rf1 {[%clk 0:00:10]}  R5c6 {[%clk 0:00:06]} 43. Rfb1 {[%clk 0:00:10]}  Rb8 {[%clk 0:00:06]} 44. Rb5 {[%clk 0:00:10]}  Rc5 {[%clk 0:00:06]} 45. Rxc5 {[%clk 0:00:11]}  dxc5 {[%clk 0:00:07]} 46. Rf1 {[%clk 0:00:10]}  Rd8 {[%clk 0:00:07]} 47. Rf5 {[%clk 0:00:10]}  Kb7 {[%clk 0:00:06]} 48. Rd5 {[%clk 0:00:10]}  Rxd5 {[%clk 0:00:04]} 49. exd5 {[%clk 0:00:11]}  Kc7 {[%clk 0:00:04]} 50. Ke4 {[%clk 0:00:12]}  Kd6 {[%clk 0:00:05]} 51. Kf5 {[%clk 0:00:13]}  Kd7 {[%clk 0:00:02]} 52. Kg6 {[%clk 0:00:13]}  Kd6 {[%clk 0:00:03]} 53. Kxh6 {[%clk 0:00:13]}  b5 {[%clk 0:00:04]} 54. cxb5 {[%clk 0:00:13]}  Kxd5 {[%clk 0:00:04]} 55. Kg6 {[%clk 0:00:12]}  e5 {[%clk 0:00:03]} 56. h6 {[%clk 0:00:12]}  e4 {[%clk 0:00:03]} 57. dxe4+ {[%clk 0:00:12]}  Kxe4 {[%clk 0:00:04]} 58. h7 {[%clk 0:00:12]}  c4 {[%clk 0:00:05]} 59. h8=Q {[%clk 0:00:13]}  c3 {[%clk 0:00:06]} 60. Qxf6 {[%clk 0:00:13]}  c2 {[%clk 0:00:07]} 61. Qc3 {[%clk 0:00:13]}  c1=Q {[%clk 0:00:07]} 62. Qxc1 {[%clk 0:00:13]} 1-0


[Site "https://www.chess.com"]

[Event "Titled Tuesday Blitz December 06 Late 2022"]
[White "Gerbelli Neto, Eduardo"]
[Black "Clawitter, Craig"]
[WhiteFideId "2103281"]
[BlackFideId "2023105"]
[WhiteElo "2178"]
[BlackElo "2182"]
[Result "0-1"]
[Round "06"]
[TimeControl "180+1"]
[Date "2022.12.07"]
[WhiteClock "0:00:02"]
[BlackClock "0:00:06"]

1. e4 {[%clk 0:03:00]}  e6 {[%clk 0:02:59]} 2. d4 {[%clk 0:03:00]}  d5 {[%clk 0:02:59]} 3. Nc3 {[%clk 0:03:00]}  Bb4 {[%clk 0:02:59]} 4. Qd3 {[%clk 0:03:00]}  Ne7 {[%clk 0:02:56]} 5. Bd2 {[%clk 0:02:48]}  O-O {[%clk 0:02:54]} 6. e5 {[%clk 0:02:48]}  b6 {[%clk 0:02:52]} 7. Qh3 {[%clk 0:02:44]}  c5 {[%clk 0:02:44]} 8. Bd3 {[%clk 0:02:38]}  Ng6 {[%clk 0:02:32]} 9. a3 {[%clk 0:02:30]}  Ba5 {[%clk 0:02:15]} 10. Nf3 {[%clk 0:02:24]}  Ba6 {[%clk 0:01:52]} 11. Ng5 {[%clk 0:02:15]}  h6 {[%clk 0:01:33]} 12. Bxg6 {[%clk 0:02:15]}  fxg6 {[%clk 0:01:28]} 13. Qxe6+ {[%clk 0:02:04]}  Kh8 {[%clk 0:01:27]} 14. Nf7+ {[%clk 0:02:02]}  Rxf7 {[%clk 0:01:28]} 15. Qxf7 {[%clk 0:02:03]}  cxd4 {[%clk 0:01:20]} 16. Nxd5 {[%clk 0:02:00]}  Bxd2+ {[%clk 0:01:13]} 17. Kxd2 {[%clk 0:02:01]}  Bc4 {[%clk 0:01:04]} 18. e6 {[%clk 0:01:12]}  Qxd5 {[%clk 0:00:51]} 19. Rae1 {[%clk 0:01:07]}  Qg5+ {[%clk 0:00:37]} 20. Kd1 {[%clk 0:00:58]}  Nc6 {[%clk 0:00:15]} 21. Qc7 {[%clk 0:00:31]}  Qxg2 {[%clk 0:00:11]} 22. e7 {[%clk 0:00:26]}  d3 {[%clk 0:00:07]} 23. e8=Q+ {[%clk 0:00:20]}  Rxe8 {[%clk 0:00:08]} 24. Rxe8+ {[%clk 0:00:20]}  Kh7 {[%clk 0:00:09]} 25. Rhe1 {[%clk 0:00:18]}  Qxf2 {[%clk 0:00:07]} 26. R8e2 {[%clk 0:00:07]}  dxe2+ {[%clk 0:00:07]} 27. Kd2 {[%clk 0:00:08]}  Qf4+ {[%clk 0:00:05]} 28. Kc3 {[%clk 0:00:07]}  Qxc7 {[%clk 0:00:05]} 29. Kxc4 {[%clk 0:00:03]}  Qe5 {[%clk 0:00:06]} 30. Kd3 {[%clk 0:00:02]}  Qd4+ {[%clk 0:00:05]} 31. Kxe2 {[%clk 0:00:02]}  Qxb2 {[%clk 0:00:06]} 0-1


[Site "https://www.chess.com"]

[Event "Titled Tuesday Blitz December 06 Late 2022"]
[White "Goltsev, Dmitry"]
[Black "Chigaev, Maksim"]
[WhiteFideId "24176710"]
[BlackFideId "4108116"]
[WhiteElo "2327"]
[BlackElo "2542"]
[Result "0-1"]
[Round "06"]
[TimeControl "180+1"]
[Date "2022.12.06"]
[WhiteClock "0:01:40"]
[BlackClock "0:02:19"]

1. e4 {[%clk 0:03:00]}  c5 {[%clk 0:03:00]} 2. Nf3 {[%clk 0:03:00]}  e6 {[%clk 0:03:01]} 3. d4 {[%clk 0:03:00]}  cxd4 {[%clk 0:03:02]} 4. Nxd4 {[%clk 0:03:01]}  Nf6 {[%clk 0:03:02]} 5. Nc3 {[%clk 0:03:01]}  Nc6 {[%clk 0:03:03]} 6. Be2 {[%clk 0:03:01]}  Be7 {[%clk 0:03:00]} 7. O-O {[%clk 0:03:02]}  Qc7 {[%clk 0:03:00]} 8. Be3 {[%clk 0:03:02]}  a6 {[%clk 0:03:00]} 9. f4 {[%clk 0:03:01]}  d6 {[%clk 0:03:00]} 10. Bf3 {[%clk 0:03:02]}  O-O {[%clk 0:03:00]} 11. Qe2 {[%clk 0:03:00]}  Nxd4 {[%clk 0:03:00]} 12. Bxd4 {[%clk 0:03:01]}  e5 {[%clk 0:03:00]} 13. fxe5 {[%clk 0:03:00]}  dxe5 {[%clk 0:03:01]} 14. Be3 {[%clk 0:03:01]}  Be6 {[%clk 0:02:58]} 15. Rfd1 {[%clk 0:03:00]}  Bc5 {[%clk 0:02:52]} 16. Nd5 {[%clk 0:02:58]}  Bxd5 {[%clk 0:02:49]} 17. Rxd5 {[%clk 0:02:29]}  Nxd5 {[%clk 0:02:48]} 18. exd5 {[%clk 0:02:29]}  e4 {[%clk 0:02:35]} 19. Bg4 {[%clk 0:02:12]}  f5 {[%clk 0:02:33]} 20. Bh3 {[%clk 0:02:11]}  f4 {[%clk 0:02:32]} 21. Be6+ {[%clk 0:02:11]}  Kh8 {[%clk 0:02:30]} 22. Bxc5 {[%clk 0:02:12]}  Qxc5+ {[%clk 0:02:30]} 23. Kh1 {[%clk 0:02:13]}  f3 {[%clk 0:02:31]} 24. gxf3 {[%clk 0:02:13]}  exf3 {[%clk 0:02:31]} 25. Qe5 {[%clk 0:02:12]}  f2 {[%clk 0:02:26]} 26. Rf1 {[%clk 0:02:11]}  Qxc2 {[%clk 0:02:23]} 27. d6 {[%clk 0:02:09]}  Rae8 {[%clk 0:02:20]} 28. Qd5 {[%clk 0:01:40]}  Rxe6 {[%clk 0:02:19]} 0-1


[Site "https://www.chess.com"]

[Event "Titled Tuesday Blitz December 06 Late 2022"]
[White "Graif, William"]
[Black "Curtis, John"]
[WhiteFideId "2609835"]
[BlackFideId "3200256"]
[WhiteElo "2205"]
[BlackElo "2203"]
[Result "0-1"]
[Round "06"]
[TimeControl "180+1"]
[Date "2022.12.07"]
[WhiteClock "0:00:03"]
[BlackClock "0:00:26"]

1. e4 {[%clk 0:02:50]}  c5 {[%clk 0:02:57]} 2. Nc3 {[%clk 0:02:49]}  d6 {[%clk 0:02:49]} 3. f4 {[%clk 0:02:48]}  e6 {[%clk 0:02:49]} 4. Nf3 {[%clk 0:02:46]}  a6 {[%clk 0:02:49]} 5. d4 {[%clk 0:02:26]}  cxd4 {[%clk 0:02:48]} 6. Nxd4 {[%clk 0:02:27]}  Qc7 {[%clk 0:02:45]} 7. Bd3 {[%clk 0:02:03]}  Nc6 {[%clk 0:02:44]} 8. Nxc6 {[%clk 0:01:47]}  bxc6 {[%clk 0:02:43]} 9. O-O {[%clk 0:01:47]}  Nf6 {[%clk 0:02:41]} 10. Qe2 {[%clk 0:01:29]}  e5 {[%clk 0:02:28]} 11. fxe5 {[%clk 0:01:21]}  dxe5 {[%clk 0:02:27]} 12. Bg5 {[%clk 0:01:13]}  Be7 {[%clk 0:02:22]} 13. Kh1 {[%clk 0:00:57]}  Bg4 {[%clk 0:02:13]} 14. Qe3 {[%clk 0:00:54]}  Be6 {[%clk 0:02:12]} 15. Rae1 {[%clk 0:00:36]}  c5 {[%clk 0:01:56]} 16. Bxf6 {[%clk 0:00:34]}  Bxf6 {[%clk 0:01:52]} 17. Nd5 {[%clk 0:00:32]}  Bxd5 {[%clk 0:01:51]} 18. exd5 {[%clk 0:00:32]}  c4 {[%clk 0:01:47]} 19. Be4 {[%clk 0:00:25]}  Rb8 {[%clk 0:01:34]} 20. Qa3 {[%clk 0:00:19]}  Be7 {[%clk 0:01:29]} 21. Qa4+ {[%clk 0:00:19]}  Rb5 {[%clk 0:01:19]} 22. b3 {[%clk 0:00:16]}  O-O {[%clk 0:01:06]} 23. Qxa6 {[%clk 0:00:17]}  Ra5 {[%clk 0:00:49]} 24. Qxc4 {[%clk 0:00:15]}  Qxc4 {[%clk 0:00:48]} 25. bxc4 {[%clk 0:00:16]}  Bd6 {[%clk 0:00:47]} 26. Ra1 {[%clk 0:00:14]}  g6 {[%clk 0:00:47]} 27. Bd3 {[%clk 0:00:14]}  f5 {[%clk 0:00:46]} 28. Rfb1 {[%clk 0:00:13]}  e4 {[%clk 0:00:46]} 29. Bf1 {[%clk 0:00:09]}  Be5 {[%clk 0:00:46]} 30. a3 {[%clk 0:00:07]}  Bxa1 {[%clk 0:00:46]} 31. Rxa1 {[%clk 0:00:08]}  Rfa8 {[%clk 0:00:43]} 32. d6 {[%clk 0:00:07]}  Kf8 {[%clk 0:00:42]} 33. Rd1 {[%clk 0:00:07]}  Rxa3 {[%clk 0:00:41]} 34. c5 {[%clk 0:00:07]}  Rc3 {[%clk 0:00:40]} 35. d7 {[%clk 0:00:04]}  Ke7 {[%clk 0:00:40]} 36. Ba6 {[%clk 0:00:02]}  Rxc5 {[%clk 0:00:30]} 37. Bc8 {[%clk 0:00:03]}  Raxc8 {[%clk 0:00:30]} 38. dxc8=Q {[%clk 0:00:03]}  Rxc8 {[%clk 0:00:30]} 39. Rc1 {[%clk 0:00:04]}  Rc3 {[%clk 0:00:28]} 40. Kg1 {[%clk 0:00:04]}  f4 {[%clk 0:00:29]} 41. Kf2 {[%clk 0:00:05]}  g5 {[%clk 0:00:28]} 42. Ke2 {[%clk 0:00:05]}  e3 {[%clk 0:00:28]} 43. Kf3 {[%clk 0:00:04]}  Kf6 {[%clk 0:00:28]} 44. h3 {[%clk 0:00:04]}  Kf5 {[%clk 0:00:28]} 45. g4+ {[%clk 0:00:02]}  Ke5 {[%clk 0:00:28]} 46. Ke2 {[%clk 0:00:01]}  Ke4 {[%clk 0:00:28]} 47. Ra1 {[%clk 0:00:02]}  Rxc2+ {[%clk 0:00:26]} 48. Kd1 {[%clk 0:00:02]}  Rh2 {[%clk 0:00:26]} 49. Ra4+ {[%clk 0:00:03]}  Kf3 {[%clk 0:00:26]} 0-1


[Site "https://www.chess.com"]

[Event "Titled Tuesday Blitz December 06 Late 2022"]
[White "Grapsa, Georgia"]
[Black "Walentukiewicz, Michal"]
[WhiteFideId "4206436"]
[BlackFideId "1126903"]
[WhiteElo "1825"]
[BlackElo "2028"]
[Result "0-1"]
[Round "06"]
[TimeControl "180+1"]
[Date "2022.12.07"]
[WhiteClock "0:00:37"]
[BlackClock "0:02:13"]

1. e4 {[%clk 0:03:00]}  g6 {[%clk 0:02:56]} 2. Nc3 {[%clk 0:03:00]}  Bg7 {[%clk 0:02:53]} 3. Bc4 {[%clk 0:03:00]}  d6 {[%clk 0:02:52]} 4. d3 {[%clk 0:03:01]}  Nf6 {[%clk 0:02:52]} 5. Be3 {[%clk 0:03:01]}  O-O {[%clk 0:02:52]} 6. f3 {[%clk 0:03:01]}  c6 {[%clk 0:02:53]} 7. Bb3 {[%clk 0:03:01]}  b5 {[%clk 0:02:52]} 8. Qd2 {[%clk 0:03:00]}  a5 {[%clk 0:02:52]} 9. a4 {[%clk 0:03:00]}  b4 {[%clk 0:02:52]} 10. Nce2 {[%clk 0:03:00]}  d5 {[%clk 0:02:53]} 11. Bh6 {[%clk 0:02:57]}  Qd6 {[%clk 0:02:46]} 12. O-O-O {[%clk 0:02:46]}  Rd8 {[%clk 0:02:46]} 13. Bxg7 {[%clk 0:02:44]}  Kxg7 {[%clk 0:02:46]} 14. h4 {[%clk 0:02:44]}  h5 {[%clk 0:02:45]} 15. Nh3 {[%clk 0:02:42]}  e5 {[%clk 0:02:44]} 16. Ng5 {[%clk 0:02:40]}  Nbd7 {[%clk 0:02:40]} 17. Kb1 {[%clk 0:02:37]}  Nc5 {[%clk 0:02:40]} 18. exd5 {[%clk 0:02:02]}  cxd5 {[%clk 0:02:36]} 19. d4 {[%clk 0:02:00]}  Nxb3 {[%clk 0:02:29]} 20. cxb3 {[%clk 0:02:01]}  e4 {[%clk 0:02:29]} 21. Qe3 {[%clk 0:01:47]}  exf3 {[%clk 0:02:28]} 22. Nxf3 {[%clk 0:01:46]}  Bf5+ {[%clk 0:02:28]} 23. Ka2 {[%clk 0:01:45]}  Ng4 {[%clk 0:02:28]} 24. Qg1 {[%clk 0:01:40]}  Re8 {[%clk 0:02:20]} 25. Rd2 {[%clk 0:01:39]}  Re3 {[%clk 0:02:19]} 26. Nh2 {[%clk 0:01:36]}  Rae8 {[%clk 0:02:15]} 27. Nxg4 {[%clk 0:00:56]}  Bxg4 {[%clk 0:02:15]} 28. Nc1 {[%clk 0:00:46]}  Qf4 {[%clk 0:02:14]} 29. Nd3 {[%clk 0:00:43]}  Qxd4 {[%clk 0:02:14]} 30. Qc1 {[%clk 0:00:37]}  Rxd3 {[%clk 0:02:13]} 0-1


[Site "https://www.chess.com"]

[Event "Titled Tuesday Blitz December 06 Late 2022"]
[White "Ibarra Jerez, Jose Carlos"]
[Black "Kamsky, Gata"]
[WhiteFideId "2226332"]
[BlackFideId "2000024"]
[WhiteElo "2638"]
[BlackElo "2666"]
[Result "0-1"]
[Round "06"]
[TimeControl "180+1"]
[Date "2022.12.06"]
[WhiteClock "0:00:04"]
[BlackClock "0:00:08"]

1. Nf3 {[%clk 0:02:59]}  d5 {[%clk 0:02:52]} 2. g3 {[%clk 0:02:59]}  Nf6 {[%clk 0:02:50]} 3. Bg2 {[%clk 0:02:59]}  c6 {[%clk 0:02:51]} 4. O-O {[%clk 0:02:58]}  Bf5 {[%clk 0:02:51]} 5. d3 {[%clk 0:02:56]}  h6 {[%clk 0:02:51]} 6. c4 {[%clk 0:02:56]}  dxc4 {[%clk 0:02:50]} 7. dxc4 {[%clk 0:02:55]}  Qxd1 {[%clk 0:02:50]} 8. Rxd1 {[%clk 0:02:56]}  Nbd7 {[%clk 0:02:49]} 9. Nd4 {[%clk 0:02:48]}  Bh7 {[%clk 0:02:47]} 10. Nb3 {[%clk 0:02:45]}  a5 {[%clk 0:02:43]} 11. Nc3 {[%clk 0:02:37]}  e5 {[%clk 0:02:40]} 12. Na4 {[%clk 0:02:32]}  Bb4 {[%clk 0:02:25]} 13. Be3 {[%clk 0:02:19]}  Bc2 {[%clk 0:02:17]} 14. Rdc1 {[%clk 0:02:18]}  Bxb3 {[%clk 0:02:17]} 15. axb3 {[%clk 0:02:17]}  Ng4 {[%clk 0:02:16]} 16. Nb6 {[%clk 0:01:55]}  Nxe3 {[%clk 0:02:12]} 17. Nxa8 {[%clk 0:01:39]}  Nxg2 {[%clk 0:02:12]} 18. c5 {[%clk 0:01:31]}  Ne3 {[%clk 0:02:04]} 19. fxe3 {[%clk 0:01:24]}  Ke7 {[%clk 0:02:01]} 20. Nb6 {[%clk 0:01:19]}  Nxc5 {[%clk 0:01:54]} 21. Rd1 {[%clk 0:01:12]}  Nxb3 {[%clk 0:01:54]} 22. Rd7+ {[%clk 0:01:09]}  Ke6 {[%clk 0:01:54]} 23. Rad1 {[%clk 0:01:07]}  Rb8 {[%clk 0:01:46]} 24. R7d3 {[%clk 0:00:44]}  Nc5 {[%clk 0:01:29]} 25. Rd8 {[%clk 0:00:24]}  Rxd8 {[%clk 0:01:23]} 26. Rxd8 {[%clk 0:00:25]}  h5 {[%clk 0:01:06]} 27. Kf1 {[%clk 0:00:20]}  g6 {[%clk 0:01:04]} 28. Re8+ {[%clk 0:00:20]}  Kf6 {[%clk 0:01:01]} 29. Nc4 {[%clk 0:00:20]}  Nd7 {[%clk 0:00:54]} 30. Ra8 {[%clk 0:00:18]}  b6 {[%clk 0:00:20]} 31. Rc8 {[%clk 0:00:17]}  c5 {[%clk 0:00:16]} 32. Nxb6 {[%clk 0:00:15]}  Nxb6 {[%clk 0:00:16]} 33. Rc6+ {[%clk 0:00:15]}  Kf5 {[%clk 0:00:16]} 34. Rxb6 {[%clk 0:00:16]}  Ke4 {[%clk 0:00:12]} 35. Kf2 {[%clk 0:00:16]}  f5 {[%clk 0:00:11]} 36. Rxg6 {[%clk 0:00:15]}  Bd2 {[%clk 0:00:10]} 37. Kf1 {[%clk 0:00:10]}  Bxe3 {[%clk 0:00:09]} 38. Rd6 {[%clk 0:00:08]}  c4 {[%clk 0:00:08]} 39. Ra6 {[%clk 0:00:06]}  Bd4 {[%clk 0:00:09]} 40. Rb6 {[%clk 0:00:04]}  Bxb6 {[%clk 0:00:08]} 0-1


[Site "https://www.chess.com"]